[Event "Turkish Second League 2019"]
[Site "Konya"]
[Date "2019.07.26"]
[Round "7"]
[White "Gurbuz, Bayram"]
[Black "Ozenir, Ekin Baris"]
[Result "0-1"]
[ECO "B50"]
[WhiteElo "1906"]
[BlackElo "2235"]
[Annotator "NA"]
[PlyCount "83"]
[EventDate "2019.07.22"]
[EventType "team-tourn"]
[EventCountry "TUR"]
[SourceTitle "playchess.com"]
[Source "ChessBase"]
[SourceQuality "1"]
[TimeControl "5400+30"]

1. e4 {[%emt 0:00:30]} c5 {[%emt 0:00:30]} 2. Nf3 {[%emt 0:00:30]} d6 {[%emt 0:00:00]} 3. c3 {[%emt 0:00:30]} Nf6 {[%emt 0:00:00]} 4. Bc4 {[%emt 0:00:30]} Nc6 {[%emt 0:00:30]} 5. d3 {[%emt 0:01:30]} e6 {[%emt 0:00:30]} 6. Nbd2 {[%emt 0:01:30]} Be7 {[%emt 0:01:30]} 7. O-O {[%emt 0:00:30]} O-O {[%emt 0:00:00]} 8. Bb3 {[%emt 0:00:30]} d5 {[%emt 0:04:00]} 9. Qe2 {[%emt 0:03:30]} b6 {[%emt 0:04:30]} 10. Re1 {[%emt 0:09:30]} Ba6 {[%emt 0:05:30]} 11. e5 {[%emt 0:07:30]} Nd7 {[%emt 0:02:30]} 12. Nf1 {[%emt 0:02:30]} Rc8 {[%emt 0:13:30]} 13. Bf4 {[%emt 0:09:30]} Re8 {[%emt 0:09:30]} 14. Ne3 {[%emt 0:05:30]} Nf8 {[%emt 0:04:30]} 15. Bg3 {[%emt 0:05:30]} Ng6 {[%emt 0:04:30]} 16. Qd2 {[%emt 0:03:30]} d4 {[%emt 0:07:30]} 17. cxd4 {[%emt 0:06:30]} Nxd4 {[%emt 0:02:30]} 18. Nxd4 {[%emt 0:01:30]} Qxd4 {[%emt 0:00:30]} 19. Bc4 {[%emt 0:03:30]} b5 {[%emt 0:06:30]} 20. Bb3 {[%emt 0:01:30]} Bb7 {[%emt 0:01:30]} 21. Qc3 {[%emt 0:06:30]} Red8 {[%emt 0:02:30]} 22. Rad1 {[%emt 0:02:30]} Rd7 {[%emt 0:02:30]} 23. Qxd4 {[%emt 0:07:20]} Rxd4 {[%emt 0:00:30]} 24. Nc2 {[%emt 0:00:57]} Rd7 {[%emt 0:01:30]} 25. a4 {[%emt 0:00:50]} a6 {[%emt 0:01:30]} 26. axb5 {[%emt 0:02:35]} axb5 {[%emt 0:00:30]} 27. Ne3 {[%emt 0:00:13]} h5 {[%emt 0:02:30]} 28. h3 {[%emt 0:00:40]} Bd8 {[%emt 0:01:30]} 29. f4 {[%emt 0:05:54]} h4 {[%emt 0:03:46]} 30. f5 {[%emt 0:00:52]} hxg3 {[%emt 0:00:54]} 31. fxg6 {[%emt 0:00:28]} Bb6 {[%emt 0:01:03]} 32. gxf7+ {[%emt 0:00:56]} Kxf7 {[%emt 0:00:04]} 33. Kf1 {[%emt 0:02:20]} Ba5 {[%emt 0:03:21]} 34. Re2 {[%emt 0:02:55]} Ke7 {[%emt 0:00:39]} 35. Bc2 {[%emt 0:03:12]} Bb6 {[%emt 0:03:29]} 36. Ke1 {[%emt 0:02:20]} Rf8 {[%emt 0:00:58]} 37. Ra1 {[%emt 0:00:49]} c4 {[%emt 0:03:14]} 38. dxc4 {[%emt 0:01:01]} Bc5 {[%emt 0:00:15]} 39. Nd1 {[%emt 0:00:23]} bxc4 {[%emt 0:02:32]} 40. Be4 {[%emt 0:00:28]} Bd5 {[%emt 0:03:25]} 41. Ra6 {[%emt 0:00:44]} Bf2+ {[%emt 0:00:58]} 42. Nxf2 {[%emt 0:01:03]} 0-1

[Event "Turkish Second League 2019"]
[Site "Konya"]
[Date "2019.07.26"]
[Round "7"]
[White "Akdag, Omer Amir"]
[Black "Yavuz, Sevki Batuhan"]
[Result "1-0"]
[ECO "D05"]
[WhiteElo "1903"]
[BlackElo "1647"]
[Annotator "NA"]
[PlyCount "129"]
[EventDate "2019.07.22"]
[EventType "team-tourn"]
[EventCountry "TUR"]
[SourceTitle "playchess.com"]
[Source "ChessBase"]
[SourceQuality "1"]
[TimeControl "5400+30"]

1. d4 {[%emt 0:00:30]} Nf6 {[%emt 0:00:30]} 2. Nf3 {[%emt 0:00:30]} d5 {[%emt 0:00:30]} 3. e3 {[%emt 0:00:30]} b6 {[%emt 0:00:30]} 4. Bd3 {[%emt 0:00:30]} e6 {[%emt 0:00:30]} 5. b3 {[%emt 0:01:30]} Bb7 {[%emt 0:00:30]} 6. Bb2 {[%emt 0:00:00]} Bd6 {[%emt 0:01:30]} 7. O-O {[%emt 0:00:00]} O-O {[%emt 0:00:30]} 8. Nbd2 {[%emt 0:00:30]} c5 {[%emt 0:00:30]} 9. Ne5 {[%emt 0:00:30]} Nc6 {[%emt 0:03:30]} 10. a3 {[%emt 0:00:30]} cxd4 {[%emt 0:06:30]} 11. exd4 {[%emt 0:00:30]} Bxe5 {[%emt 0:02:30]} 12. dxe5 {[%emt 0:00:30]} Nd7 {[%emt 0:00:30]} 13. f4 {[%emt 0:06:30]} f5 {[%emt 0:05:30]} 14. exf6 {[%emt 0:03:30]} Nxf6 {[%emt 0:00:30]} 15. Qe1 {[%emt 0:01:30]} Qe7 {[%emt 0:03:30]} 16. Qh4 {[%emt 0:02:30]} h6 {[%emt 0:08:30]} 17. Rae1 {[%emt 0:02:30]} Qc5+ {[%emt 0:04:30]} 18. Kh1 {[%emt 0:00:30]} Rae8 {[%emt 0:01:30]} 19. Rf3 {[%emt 0:04:30]} d4 {[%emt 0:06:30]} 20. b4 {[%emt 0:07:30]} Qh5 {[%emt 0:05:30]} 21. Qxh5 {[%emt 0:00:30]} Nxh5 {[%emt 0:00:30]} 22. Bg6 {[%emt 0:00:30]} Ne7 {[%emt 0:13:30]} 23. Bxh5 {[%emt 0:00:00]} Rc8 {[%emt 0:03:30]} 24. Rf2 {[%emt 0:02:00]} Rxc2 {[%emt 0:01:30]} 25. Bxd4 {[%emt 0:00:30]} Nf5 {[%emt 0:01:30]} 26. Bg6 {[%emt 0:12:30]} Nxd4 {[%emt 0:04:30]} 27. Bxc2 {[%emt 0:00:30]} Nxc2 {[%emt 0:00:30]} 28. Rxe6 {[%emt 0:00:30]} Nxa3 {[%emt 0:02:30]} 29. Re7 {[%emt 0:01:30]} Rf7 {[%emt 0:00:30]} 30. Rxf7 {[%emt 0:02:30]} Kxf7 {[%emt 0:00:30]} 31. Re2 {[%emt 0:00:30]} Nb5 {[%emt 0:17:46]} 32. Nc4 {[%emt 0:03:30]} Kf6 {[%emt 0:01:09]} 33. Kg1 {[%emt 0:01:30]} Bd5 {[%emt 0:01:31]} 34. Ne5 {[%emt 0:02:30]} Kf5 {[%emt 0:01:51]} 35. Nd3 {[%emt 0:01:30]} Kf6 {[%emt 0:00:42]} 36. Kf2 {[%emt 0:00:30]} a5 {[%emt 0:01:05]} 37. Re5 {[%emt 0:03:30]} Bc6 {[%emt 0:00:40]} 38. bxa5 {[%emt 0:00:30]} bxa5 {[%emt 0:00:03]} 39. Rc5 {[%emt 0:00:30]} Be8 {[%emt 0:00:11]} 40. Nb2 {[%emt 0:00:30]} Ke6 {[%emt 0:00:52]} 41. Re5+ {[%emt 0:00:30]} Kf7 {[%emt 0:00:12]} 42. Nc4 {[%emt 0:00:30]} Kf8 {[%emt 0:01:10]} 43. Nxa5 {[%emt 0:00:30]} Nd6 {[%emt 0:00:09]} 44. g4 {[%emt 0:00:30]} Bd7 {[%emt 0:00:34]} 45. Kf3 {[%emt 0:00:30]} Kf7 {[%emt 0:00:13]} 46. h4 {[%emt 0:01:30]} Nc8 {[%emt 0:00:39]} 47. Nc4 {[%emt 0:03:30]} Bc6+ {[%emt 0:00:25]} 48. Ke3 {[%emt 0:00:30]} Ne7 {[%emt 0:00:46]} 49. Nd6+ {[%emt 0:04:30]} Kf8 {[%emt 0:00:44]} 50. Rc5 {[%emt 0:04:30]} g6 {[%emt 0:00:31]} 51. Nc8 {[%emt 0:01:30]} Nd5+ {[%emt 0:00:40]} 52. Kd4 {[%emt 0:00:00]} Bb7 {[%emt 0:00:31]} 53. Nd6 {[%emt 0:00:00]} Nxf4 {[%emt 0:00:18]} 54. Nxb7 {[%emt 0:00:30]} Ne6+ {[%emt 0:00:30]} 55. Ke5 {[%emt 0:00:00]} Nxc5 {[%emt 0:00:05]} 56. Nxc5 {[%emt 0:00:00]} Kf7 {[%emt 0:00:12]} 57. Ne4 {[%emt 0:00:00]} Ke7 {[%emt 0:00:00]} 58. Nd6 {[%emt 0:00:00]} g5 {[%emt 0:00:26]} 59. hxg5 {[%emt 0:00:30]} hxg5 {[%emt 0:00:05]} 60. Ne4 {[%emt 0:00:30]} Kf7 {[%emt 0:00:00]} 61. Kf5 {[%emt 0:00:00]} Kg7 {[%emt 0:00:08]} 62. Kxg5 {[%emt 0:00:00]} Kf7 {[%emt 0:00:04]} 63. Kh6 {[%emt 0:00:30]} Kg8 {[%emt 0:00:00]} 64. g5 {[%emt 0:00:00]} Kh8 {[%emt 0:00:00]} 65. g6 {[%emt 0:00:00]} 1-0

[Event "Turkish Second League 2019"]
[Site "Konya"]
[Date "2019.07.26"]
[Round "7"]
[White "Can, Furkan"]
[Black "Cilek, Bora"]
[Result "1-0"]
[ECO "B07"]
[WhiteElo "1900"]
[BlackElo "1948"]
[Annotator "NA"]
[PlyCount "105"]
[EventDate "2019.07.22"]
[EventType "team-tourn"]
[EventCountry "TUR"]
[SourceTitle "playchess.com"]
[Source "ChessBase"]
[SourceQuality "1"]
[TimeControl "5400+30"]

1. d4 {[%emt 0:00:30]} Nf6 {[%emt 0:01:30]} 2. Nf3 {[%emt 0:00:30]} g6 {[%emt 0:00:30]} 3. Nbd2 {[%emt 0:00:00]} Bg7 {[%emt 0:00:30]} 4. e4 {[%emt 0:00:00]} d6 {[%emt 0:00:00]} 5. Bd3 {[%emt 0:00:30]} O-O {[%emt 0:00:00]} 6. O-O {[%emt 0:00:00]} Nc6 {[%emt 0:00:30]} 7. Re1 {[%emt 0:01:00]} e5 {[%emt 0:00:30]} 8. c3 {[%emt 0:00:30]} Nd7 {[%emt 0:00:30]} 9. Nb3 {[%emt 0:01:30]} a5 {[%emt 0:02:30]} 10. a4 {[%emt 0:00:00]} exd4 {[%emt 0:08:30]} 11. cxd4 {[%emt 0:00:00]} Nb4 {[%emt 0:00:30]} 12. Bf1 {[%emt 0:10:30]} d5 {[%emt 0:10:30]} 13. e5 {[%emt 0:10:30]} c6 {[%emt 0:04:30]} 14. Bg5 {[%emt 0:04:30]} Qb6 {[%emt 0:03:30]} 15. Qd2 {[%emt 0:03:30]} Re8 {[%emt 0:02:30]} 16. h4 {[%emt 0:08:30]} Nf8 {[%emt 0:05:30]} 17. Nc5 {[%emt 0:01:30]} Ne6 {[%emt 0:05:30]} 18. Nxe6 {[%emt 0:00:00]} Bxe6 {[%emt 0:00:30]} 19. h5 {[%emt 0:08:00]} Qc7 {[%emt 0:03:30]} 20. Rac1 {[%emt 0:01:30]} Qd7 {[%emt 0:03:30]} 21. Qf4 {[%emt 0:01:30]} Bf5 {[%emt 0:11:30]} 22. Nh4 {[%emt 0:04:30]} Bd3 {[%emt 0:10:30]} 23. Rc3 {[%emt 0:03:30]} Bxf1 {[%emt 0:00:30]} 24. Rxf1 {[%emt 0:00:30]} c5 {[%emt 0:03:30]} 25. Bf6 {[%emt 0:02:30]} Re6 {[%emt 0:02:55]} 26. Rf3 {[%emt 0:13:30]} Nc6 {[%emt 0:09:44]} 27. Nf5 {[%emt 0:05:53]} Nxd4 {[%emt 0:01:13]} 28. Nxd4 {[%emt 0:00:13]} cxd4 {[%emt 0:00:02]} 29. Qxd4 {[%emt 0:00:19]} Rae8 {[%emt 0:03:22]} 30. hxg6 {[%emt 0:02:03]} fxg6 {[%emt 0:00:36]} 31. Rd1 {[%emt 0:02:31]} Bxf6 {[%emt 0:03:42]} 32. exf6 {[%emt 0:00:14]} Re1+ {[%emt 0:00:32]} 33. Rxe1 {[%emt 0:00:55]} Rxe1+ {[%emt 0:00:30]} 34. Kh2 {[%emt 0:00:30]} Kf7 {[%emt 0:00:00]} 35. Qf4 {[%emt 0:01:57]} Re6 {[%emt 0:02:15]} 36. Qh6 {[%emt 0:01:28]} Qd6+ {[%emt 0:00:56]} 37. g3 {[%emt 0:00:08]} Rxf6 {[%emt 0:00:00]} 38. Qxh7+ {[%emt 0:00:07]} Kf8 {[%emt 0:00:00]} 39. Qh8+ {[%emt 0:00:25]} Kf7 {[%emt 0:00:01]} 40. Qh7+ {[%emt 0:00:21]} Kf8 {[%emt 0:00:11]} 41. Re3 {[%emt 0:10:55]} d4 {[%emt 0:02:50]} 42. Qh8+ {[%emt 0:00:44]} Kf7 {[%emt 0:00:01]} 43. Qe8+ {[%emt 0:00:14]} Kg7 {[%emt 0:00:01]} 44. Re7+ {[%emt 0:00:20]} Kh6 {[%emt 0:00:00]} 45. Qh8+ {[%emt 0:00:29]} Kg5 {[%emt 0:00:03]} 46. Qh4+ {[%emt 0:00:53]} Kf5 {[%emt 0:00:01]} 47. Qh3+ {[%emt 0:00:26]} Kg5 {[%emt 0:00:02]} 48. f4+ {[%emt 0:01:37]} Rxf4 {[%emt 0:00:03]} 49. gxf4+ {[%emt 0:00:11]} Qxf4+ {[%emt 0:00:14]} 50. Qg3+ {[%emt 0:00:00]} Qxg3+ {[%emt 0:00:02]} 51. Kxg3 {[%emt 0:00:11]} Kf5 {[%emt 0:00:01]} 52. Kf3 {[%emt 0:00:00]} g5 {[%emt 0:00:28]} 53. Re4 {[%emt 0:00:05]} 1-0

[Event "Turkish Second League 2019"]
[Site "Konya"]
[Date "2019.07.26"]
[Round "7"]
[White "Abdimanoglu, Beste Basak"]
[Black "Ayazmali, Gizem"]
[Result "1/2-1/2"]
[ECO "A52"]
[WhiteElo "1898"]
[BlackElo "1767"]
[Annotator "NA"]
[PlyCount "75"]
[EventDate "2019.07.22"]
[EventType "team-tourn"]
[EventCountry "TUR"]
[SourceTitle "playchess.com"]
[Source "ChessBase"]
[SourceQuality "1"]
[TimeControl "5400+30"]

1. d4 {[%emt 0:00:30]} Nf6 {[%emt 0:00:30]} 2. c4 {[%emt 0:00:00]} e5 {[%emt 0:00:00]} 3. dxe5 {[%emt 0:01:00]} Ng4 {[%emt 0:00:00]} 4. Nf3 {[%emt 0:00:30]} Bc5 {[%emt 0:00:30]} 5. e3 {[%emt 0:00:30]} Nc6 {[%emt 0:00:00]} 6. Be2 {[%emt 0:02:30]} O-O {[%emt 0:00:00]} 7. a3 {[%emt 0:01:30]} a5 {[%emt 0:00:30]} 8. b3 {[%emt 0:05:30]} Ngxe5 {[%emt 0:07:30]} 9. O-O {[%emt 0:16:30]} Nxf3+ {[%emt 0:05:30]} 10. Bxf3 {[%emt 0:03:30]} Qf6 {[%emt 0:01:30]} 11. Ra2 {[%emt 0:00:00]} Ne5 {[%emt 0:01:30]} 12. Nd2 {[%emt 0:09:00]} Ra6 {[%emt 0:08:30]} 13. Bb2 {[%emt 0:13:30]} Qe7 {[%emt 0:03:30]} 14. Ne4 {[%emt 0:10:30]} Nxf3+ {[%emt 0:15:30]} 15. Qxf3 {[%emt 0:00:00]} Rg6 {[%emt 0:00:30]} 16. Ng3 {[%emt 0:08:00]} Qg5 {[%emt 0:33:40]} 17. Qd5 {[%emt 0:05:30]} Qxd5 {[%emt 0:01:41]} 18. cxd5 {[%emt 0:00:30]} Rb6 {[%emt 0:00:30]} 19. Rc1 {[%emt 0:00:30]} d6 {[%emt 0:00:30]} 20. Ne4 {[%emt 0:00:30]} Rxb3 {[%emt 0:00:30]} 21. Nxc5 {[%emt 0:00:30]} dxc5 {[%emt 0:00:30]} 22. Rxc5 {[%emt 0:00:30]} Bf5 {[%emt 0:09:50]} 23. Bc1 {[%emt 0:12:08]} g6 {[%emt 0:05:35]} 24. Rb2 {[%emt 0:04:15]} Rd3 {[%emt 0:01:16]} 25. Rd2 {[%emt 0:01:00]} Rxd2 {[%emt 0:00:36]} 26. Bxd2 {[%emt 0:00:30]} b6 {[%emt 0:00:30]} 27. Rxc7 {[%emt 0:00:30]} Rd8 {[%emt 0:00:30]} 28. Bc3 {[%emt 0:00:30]} Rxd5 {[%emt 0:00:30]} 29. Bd4 {[%emt 0:00:30]} Kf8 {[%emt 0:00:30]} 30. Rb7 {[%emt 0:00:30]} b5 {[%emt 0:00:30]} 31. h3 {[%emt 0:00:30]} Ke8 {[%emt 0:00:30]} 32. Rb8+ {[%emt 0:00:30]} Ke7 {[%emt 0:00:30]} 33. Rb7+ {[%emt 0:00:30]} Bd7 {[%emt 0:00:30]} 34. Bc3 {[%emt 0:00:30]} a4 {[%emt 0:00:30]} 35. Bb4+ {[%emt 0:00:30]} Ke6 {[%emt 0:00:30]} 36. Rb6+ {[%emt 0:00:30]} Ke5 {[%emt 0:00:30]} 37. Kf1 {[%emt 0:00:30]} Be6 {[%emt 0:00:30]} 38. Ke2 {[%emt 0:03:14]} 1/2-1/2

[Event "Turkish Second League 2019"]
[Site "Konya"]
[Date "2019.07.26"]
[Round "7"]
[White "Sade, Defne"]
[Black "Nesanir, Selin"]
[Result "1-0"]
[ECO "B27"]
[WhiteElo "1897"]
[BlackElo "1622"]
[Annotator "NA"]
[PlyCount "75"]
[EventDate "2019.07.22"]
[EventType "team-tourn"]
[EventCountry "TUR"]
[SourceTitle "playchess.com"]
[Source "ChessBase"]
[SourceQuality "1"]
[TimeControl "5400+30"]

1. e4 {[%emt 0:00:30]} c5 {[%emt 0:00:30]} 2. Nf3 {[%emt 0:00:00]} g6 {[%emt 0:00:30]} 3. d4 {[%emt 0:00:00]} cxd4 {[%emt 0:00:00]} 4. Qxd4 {[%emt 0:00:30]} Nf6 {[%emt 0:00:00]} 5. e5 {[%emt 0:00:00]} Nc6 {[%emt 0:00:00]} 6. Qa4 {[%emt 0:00:00]} Nd5 {[%emt 0:00:00]} 7. Qb3 {[%emt 0:00:00]} Nc7 {[%emt 0:01:30]} 8. Bf4 {[%emt 0:00:00]} Ne6 {[%emt 0:00:30]} 9. Bg3 {[%emt 0:00:00]} Bg7 {[%emt 0:00:30]} 10. Nc3 {[%emt 0:00:00]} b6 {[%emt 0:05:30]} 11. O-O-O {[%emt 0:03:30]} Bb7 {[%emt 0:01:30]} 12. Nd5 {[%emt 0:07:30]} Nc5 {[%emt 0:04:30]} 13. Qe3 {[%emt 0:02:30]} Rc8 {[%emt 0:04:30]} 14. Kb1 {[%emt 0:01:30]} h5 {[%emt 0:09:30]} 15. Ng5 {[%emt 0:13:30]} Bh6 {[%emt 0:04:30]} 16. f4 {[%emt 0:04:30]} Bxg5 {[%emt 0:01:30]} 17. fxg5 {[%emt 0:00:30]} Ne6 {[%emt 0:03:30]} 18. h4 {[%emt 0:14:30]} Na5 {[%emt 0:02:30]} 19. Be2 {[%emt 0:02:30]} Nc4 {[%emt 0:03:30]} 20. Bxc4 {[%emt 0:00:00]} Rxc4 {[%emt 0:00:00]} 21. Rhf1 {[%emt 0:01:00]} O-O {[%emt 0:05:00]} 22. Be1 {[%emt 0:08:30]} Bxd5 {[%emt 0:07:30]} 23. Rxd5 {[%emt 0:00:30]} Qc7 {[%emt 0:01:30]} 24. Bc3 {[%emt 0:03:30]} Rxh4 {[%emt 0:04:30]} 25. Rfd1 {[%emt 0:02:30]} Rd8 {[%emt 0:08:30]} 26. g3 {[%emt 0:03:30]} Rg4 {[%emt 0:00:30]} 27. a3 {[%emt 0:07:30]} Rxg5 {[%emt 0:12:44]} 28. Bb4 {[%emt 0:00:30]} Kf8 {[%emt 0:01:59]} 29. g4 {[%emt 0:01:30]} a5 {[%emt 0:02:08]} 30. Bc3 {[%emt 0:21:00]} Rxg4 {[%emt 0:06:35]} 31. Qh6+ {[%emt 0:02:18]} Kg8 {[%emt 0:00:32]} 32. Rf1 {[%emt 0:00:52]} Qc4 {[%emt 0:02:50]} 33. Rdd1 {[%emt 0:00:03]} a4 {[%emt 0:04:50]} 34. Bb4 {[%emt 0:00:53]} d6 {[%emt 0:01:57]} 35. exd6 {[%emt 0:00:04]} exd6 {[%emt 0:00:08]} 36. Bc3 {[%emt 0:00:09]} Nd4 {[%emt 0:00:36]} 37. Rf4 {[%emt 0:00:59]} Rxf4 {[%emt 0:01:31]} 38. Qxf4 {[%emt 0:00:02]} 1-0

[Event "Turkish Second League 2019"]
[Site "Konya"]
[Date "2019.07.26"]
[Round "7"]
[White "Demirtas, Hafize"]
[Black "Ibrahimova, Sabina"]
[Result "0-1"]
[ECO "B51"]
[WhiteElo "1893"]
[BlackElo "2190"]
[Annotator "NA"]
[PlyCount "172"]
[EventDate "2019.07.22"]
[EventType "team-tourn"]
[EventCountry "TUR"]
[SourceTitle "playchess.com"]
[Source "ChessBase"]
[SourceQuality "1"]
[TimeControl "5400+30"]

1. e4 {[%emt 0:00:30]} c5 {[%emt 0:00:30]} 2. Nf3 {[%emt 0:00:00]} Nc6 {[%emt 0:00:30]} 3. Bb5 {[%emt 0:00:00]} d6 {[%emt 0:00:00]} 4. O-O {[%emt 0:00:30]} Bd7 {[%emt 0:00:00]} 5. Re1 {[%emt 0:00:00]} a6 {[%emt 0:02:30]} 6. Bf1 {[%emt 0:00:00]} g6 {[%emt 0:00:30]} 7. c3 {[%emt 0:00:30]} Bg4 {[%emt 0:08:30]} 8. h3 {[%emt 0:02:30]} Bxf3 {[%emt 0:00:30]} 9. Qxf3 {[%emt 0:01:30]} Bg7 {[%emt 0:00:00]} 10. Na3 {[%emt 0:03:30]} Nf6 {[%emt 0:04:00]} 11. d3 {[%emt 0:03:30]} O-O {[%emt 0:00:00]} 12. Bf4 {[%emt 0:01:30]} e5 {[%emt 0:09:00]} 13. Bg5 {[%emt 0:04:30]} h6 {[%emt 0:00:30]} 14. Be3 {[%emt 0:03:30]} Ne8 {[%emt 0:04:30]} 15. Qg3 {[%emt 0:10:30]} Nc7 {[%emt 0:20:30]} 16. Be2 {[%emt 0:06:30]} Ne6 {[%emt 0:01:30]} 17. Bd1 {[%emt 0:01:30]} Kh7 {[%emt 0:03:30]} 18. Bb3 {[%emt 0:00:30]} Qe7 {[%emt 0:00:30]} 19. Rad1 {[%emt 0:04:30]} b5 {[%emt 0:00:30]} 20. Bc1 {[%emt 0:04:30]} Rae8 {[%emt 0:09:30]} 21. Bd5 {[%emt 0:07:30]} Ncd8 {[%emt 0:00:30]} 22. Nc2 {[%emt 0:01:30]} Nc7 {[%emt 0:04:30]} 23. Bb3 {[%emt 0:01:30]} Nde6 {[%emt 0:00:30]} 24. Ne3 {[%emt 0:00:30]} f5 {[%emt 0:00:30]} 25. exf5 {[%emt 0:05:30]} gxf5 {[%emt 0:00:30]} 26. Nd5 {[%emt 0:03:30]} Nxd5 {[%emt 0:02:30]} 27. Bxd5 {[%emt 0:00:00]} Nc7 {[%emt 0:00:30]} 28. Bf3 {[%emt 0:02:00]} Qf7 {[%emt 0:07:30]} 29. Qh4 {[%emt 0:04:30]} Qf6 {[%emt 0:00:30]} 30. Qxf6 {[%emt 0:01:30]} Bxf6 {[%emt 0:00:30]} 31. Bh5 {[%emt 0:01:30]} Re7 {[%emt 0:03:01]} 32. d4 {[%emt 0:04:30]} cxd4 {[%emt 0:01:22]} 33. cxd4 {[%emt 0:00:30]} e4 {[%emt 0:00:07]} 34. d5 {[%emt 0:02:45]} Be5 {[%emt 0:04:02]} 35. f3 {[%emt 0:05:42]} Bg3 {[%emt 0:04:10]} 36. Re2 {[%emt 0:00:40]} Re5 {[%emt 0:00:03]} 37. Rc2 {[%emt 0:05:35]} Re7 {[%emt 0:04:52]} 38. Re2 {[%emt 0:01:50]} Ne8 {[%emt 0:01:41]} 39. fxe4 {[%emt 0:01:33]} fxe4 {[%emt 0:00:45]} 40. Bg4 {[%emt 0:05:28]} Ng7 {[%emt 0:00:47]} 41. Rd4 {[%emt 0:01:03]} Rfe8 {[%emt 0:01:44]} 42. Rc2 {[%emt 0:00:39]} h5 {[%emt 0:00:15]} 43. Be2 {[%emt 0:00:48]} Kg6 {[%emt 0:02:02]} 44. a4 {[%emt 0:00:23]} Rf8 {[%emt 0:00:16]} 45. Rd1 {[%emt 0:00:29]} bxa4 {[%emt 0:01:09]} 46. Rf1 {[%emt 0:00:37]} Rxf1+ {[%emt 0:00:30]} 47. Kxf1 {[%emt 0:01:02]} Nf5 {[%emt 0:00:10]} 48. Rc8 {[%emt 0:00:02]} Rf7 {[%emt 0:01:06]} 49. Kg1 {[%emt 0:00:23]} h4 {[%emt 0:00:39]} 50. Bg4 {[%emt 0:00:35]} Kg7 {[%emt 0:00:40]} 51. Bd2 {[%emt 0:00:41]} Be5 {[%emt 0:00:28]} 52. Bh5 {[%emt 0:00:28]} Bd4+ {[%emt 0:00:30]} 53. Kh2 {[%emt 0:00:23]} Be5+ {[%emt 0:00:39]} 54. Kg1 {[%emt 0:00:30]} Rb7 {[%emt 0:00:00]} 55. Bg5 {[%emt 0:00:23]} a3 {[%emt 0:00:10]} 56. bxa3 {[%emt 0:00:44]} Rb1+ {[%emt 0:00:13]} 57. Rc1 {[%emt 0:00:27]} Rb7 {[%emt 0:00:53]} 58. Bg4 {[%emt 0:00:31]} Bd4+ {[%emt 0:00:53]} 59. Kh2 {[%emt 0:00:24]} Be3 {[%emt 0:00:28]} 60. Bxe3 {[%emt 0:00:53]} Nxe3 {[%emt 0:00:05]} 61. Re1 {[%emt 0:00:11]} Rb3 {[%emt 0:00:16]} 62. a4 {[%emt 0:00:50]} Kf6 {[%emt 0:00:09]} 63. Bd7 {[%emt 0:00:25]} Ke5 {[%emt 0:00:16]} 64. Bc6 {[%emt 0:00:26]} Nxd5 {[%emt 0:00:45]} 65. Kg1 {[%emt 0:00:27]} Rb2 {[%emt 0:00:44]} 66. Kf1 {[%emt 0:00:31]} Nc3 {[%emt 0:00:35]} 67. g3 {[%emt 0:00:36]} hxg3 {[%emt 0:00:09]} 68. Re3 {[%emt 0:00:09]} g2+ {[%emt 0:00:47]} 69. Kg1 {[%emt 0:00:14]} Kd4 {[%emt 0:00:07]} 70. Re1 {[%emt 0:00:49]} Kd3 {[%emt 0:01:18]} 71. h4 {[%emt 0:00:36]} Ne2+ {[%emt 0:00:38]} 72. Kxg2 {[%emt 0:00:56]} Nd4+ {[%emt 0:00:03]} 73. Kg3 {[%emt 0:00:13]} Nxc6 {[%emt 0:00:03]} 74. Rd1+ {[%emt 0:00:00]} Rd2 {[%emt 0:00:25]} 75. Rb1 {[%emt 0:00:15]} e3 {[%emt 0:00:27]} 76. Rb3+ {[%emt 0:00:19]} Ke4 {[%emt 0:00:10]} 77. h5 {[%emt 0:00:16]} Nd4 {[%emt 0:00:14]} 78. Rb8 {[%emt 0:01:18]} Nf5+ {[%emt 0:00:36]} 79. Kg4 {[%emt 0:00:19]} Rg2+ {[%emt 0:00:40]} 80. Kh3 {[%emt 0:00:10]} Rg3+ {[%emt 0:00:00]} 81. Kh2 {[%emt 0:00:33]} Rg5 {[%emt 0:00:00]} 82. a5 {[%emt 0:00:01]} Kf3 {[%emt 0:00:27]} 83. Rb1 {[%emt 0:00:30]} e2 {[%emt 0:00:30]} 84. h6 {[%emt 0:00:30]} Kf2 {[%emt 0:00:00]} 85. Kh3 {[%emt 0:01:29]} Rg3+ {[%emt 0:00:08]} 86. Kh2 {[%emt 0:00:36]} Rg4 {[%emt 0:00:04]} 0-1